fUSD/lending_fUSD_20250510
["ID","MTS","AMOUNT","RATE_DAILY","PERIOD"]
[360562598,1746890404955,-400.0,0.00019995,2]
[360562599,1746890404984,-400.0,0.00019995,2]
[360562600,1746890405014,-400.0,0.00019995,2]
[360562601,1746890405043,-337.57341733,0.00019995,2]
[360562602,1746890405196,-400.0,0.00019995,2]
[360562603,1746890405228,-201.12041936,0.00019995,2]
[360562604,1746890405259,-400.0,0.00019995,2]
[360562605,1746890405290,-400.0,0.00019995,2]
[360562606,1746890405320,-400.0,0.00019995,2]
[360562607,1746890405351,-400.0,0.00019995,2]
[360562608,1746890405385,-400.0,0.00019995,2]
[360562609,1746890405417,-400.0,0.00019995,2]
[360562610,1746890405449,-400.0,0.00019995,2]
[360562611,1746890405482,-400.0,0.00019995,2]
[360562612,1746890405514,-400.0,0.00019995,2]
[360562613,1746890405546,-400.0,0.00019995,2]
[360562614,1746890405576,-151.99582966,0.00019995,2]
[360562615,1746890405609,-400.0,0.00019995,2]
[360562616,1746890405639,-400.0,0.00019995,2]
[360562617,1746890405670,-400.0,0.00019995,2]
[360562618,1746890405702,-539.89319225,0.00019995,2]
[360562619,1746890405733,-603.44,0.00019995,2]
[360562620,1746890405762,-603.44,0.00019995,2]
[360562621,1746890405790,-603.44,0.00019995,2]
[360562622,1746890405819,-603.44,0.00019995,2]
[360562623,1746890405848,-603.44,0.00019995,2]
[360562624,1746890405879,-603.53215836,0.00019995,2]
[360562625,1746890405908,-414.47,0.00019995,2]
[360562626,1746890405938,-414.47,0.00019995,2]
[360562627,1746890405968,-414.47,0.00019995,2]
[360562628,1746890405997,-414.47,0.00019995,2]
[360562629,1746890406027,-414.47,0.00019995,2]
[360562630,1746890406057,-414.47,0.00019995,2]
[360562631,1746890406087,-414.47,0.00019995,2]
[360562632,1746890406117,-414.47,0.00019995,2]
[360562633,1746890406146,-414.47,0.00019995,2]
[360562634,1746890406177,-414.47,0.00019995,2]
[360562635,1746890406210,-414.47,0.00019995,2]
[360562636,1746890406240,-414.47,0.00019995,2]
[360562637,1746890406272,-414.52296474,0.00019995,2]
[360562638,1746890406302,-408.76,0.00019995,2]
[360562639,1746890406332,-408.76,0.00019995,2]
[360562640,1746890406365,-408.76,0.00019995,2]
[360562641,1746890406396,-408.76,0.00019995,2]
[360562642,1746890406427,-408.76,0.00019995,2]
[360562643,1746890406459,-408.76,0.00019995,2]
[360562644,1746890406489,-408.76,0.00019995,2]
[360562645,1746890406519,-408.76,0.00019995,2]
[360562646,1746890406550,-408.76,0.00019995,2]
[360562647,1746890406580,-408.76,0.00019995,2]
[360562648,1746890406610,-408.76,0.00019995,2]
[360562649,1746890406638,-408.76,0.00019995,2]
[360562650,1746890406667,-408.95889164,0.00019995,2]
[360562651,1746890406696,-10000.0,0.00019995,2]
[360562652,1746890406724,-4590.85253816,0.00019995,2]
[360562653,1746890470177,174.39,0.00014913,2]
[360562657,1746890599662,500.0,0.00030039,120]
[360562658,1746890625364,-164.8,0.00016581,2]
[360562661,1746890629763,13999.99999958,0.0003,30]
[360562662,1746890631679,-223.49909439,0.00016581,2]
[360562663,1746890646205,-223.49909439,0.00016581,2]
[360562666,1746890649885,-121.61181122,0.00016581,2]
[360562667,1746890649911,-131.18909439,0.00017555,2]
[360562668,1746890660540,766.84,0.00013699,2]
[360562669,1746890661150,-68.81090561,0.00017555,2]
[360562671,1746890719567,2275.48,0.00020575,30]
[360562673,1746890728226,430.76948477,0.00023,120]
[360562674,1746890732378,1568.51877312,0.0002,120]
[360562675,1746890734170,2776.94668086,0.0003013,120]
[360562678,1746890740277,2350.0,0.0003013,120]
[360562679,1746890752501,1076.95138064,0.000301,120]
[360562680,1746890764227,446.99818878,0.00016438,2]
[360562682,1746890766506,628.5066513,0.0003,120]
[360562683,1746890809603,150.0,1e-08,2]
[360562685,1746890829125,-200.0,0.00018239,2]
[360562686,1746890829146,-13.93528248,0.00018239,2]
[360562687,1746890831825,2291.21156348,0.00021,120]
[360562688,1746890832581,163.4923076,0.00015,2]
[360562689,1746890832789,1352.07754724,0.0003,120]
[360562690,1746890833085,2891.10652949,0.0002301,120]
[360562691,1746890850084,1000.0,0.0003013,120]
[360562692,1746890868989,368.1782853,0.00028,120]
[360562693,1746890870560,1287.70669249,0.0003,120]
[360562694,1746890875888,2020.0,0.0002,120]
[360562696,1746890886229,1038.7154527,0.000295,120]
[360562698,1746890898207,-235.04456679,0.00018157,2]
[360562699,1746890901190,-14.95543321,0.00018157,2]
[360562706,1746890908154,-389.6789104,0.00018117,2]
[360562707,1746890908190,960.0,0.0002491,120]
[360562708,1746890908354,960.0,0.00027175,120]
[360562709,1746890909813,199.64,0.00016512,2]
[360562710,1746890911576,8190.16880786,0.0003,30]
[360562711,1746890916764,-158.71095394,0.00018117,2]
[360562712,1746890917950,2141.52468286,0.0003,120]
[360562713,1746890918261,479.5453585,0.0003,120]
[360562714,1746890918636,3242.33460621,0.000301,120]
[360562715,1746890918737,647.28565442,0.0003013,120]
[360562716,1746890918972,998.32662467,0.0003,120]
[360562717,1746890920579,1840.93264402,0.0003,120]
[360562718,1746890921036,3385.78196591,0.0003,120]
[360562719,1746890922529,2601.0,0.000145,120]
[360562723,1746890925558,511.08962128,0.0001,120]
[360562736,1746890927726,1069.24547337,0.00025,120]
[360562737,1746890929281,2742.77888123,0.00030134,120]
[360562738,1746890931142,-278.1108124,0.00018117,2]
[360562740,1746890946562,-133.49932326,0.00018117,2]
[360562747,1746890980436,-184.611196,0.00018138,2]
[360562748,1746890991200,-87.59080017,0.00018138,2]
[360562753,1746891002727,182.35750783,0.00017998,2]
[360562754,1746891002750,492.48020875,0.00017998,2]
[360562755,1746891003724,-288.22800383,0.00017998,2]
[360562759,1746891008207,-152.0,0.00017998,2]
[360562761,1746891021192,-247.15644824,0.00017998,2]
[360562765,1746891031823,-1437.8,0.00017973,2]
[360562766,1746891031832,-300.0,0.00017997,2]
[360562767,1746891031842,-22537.77783135,0.00017998,2]
[360562768,1746891031851,-1200.0,0.00018237,2]
[360562769,1746891031861,-300.0,0.00018237,2]
[360562770,1746891031870,-500.0,0.00018238,2]
[360562771,1746891031880,-500.0,0.00018238,2]
[360562772,1746891031889,-500.0,0.00018238,2]
[360562773,1746891031899,-267.16352648,0.00018238,2]
[360562774,1746891031909,-500.0,0.00018238,2]
[360562775,1746891031919,-484.62508972,0.00018238,2]
[360562776,1746891031928,-250.0,0.00018278,2]
[360562777,1746891031938,-2402.37,0.0001832,2]
[360562778,1746891031947,-1000.0,0.0001839,2]
[360562779,1746891031957,-1000.0,0.000184,2]
[360562780,1746891031966,-293.0,0.00018529,2]
[360562781,1746891031976,-1000.0,0.000186,2]
[360562782,1746891031985,-2022.26,0.00018633,2]
[360562783,1746891031994,-500.0,0.00018673,2]
[360562784,1746891032004,-10152.10355245,0.00018687,2]
[360562785,1746891032016,-3027.1347188,0.00018687,2]
[360562786,1746891032027,-501.36406778,0.00018687,2]
[360562787,1746891032039,-426.16130978,0.00018687,2]
[360562791,1746891032212,-1875.14635119,0.00018687,2]
[360562793,1746891032223,-207.4,0.0001875,2]
[360562795,1746891032232,-158.46,0.0001879,2]
[360562797,1746891032242,-2931.69,0.00018796,2]
[360562799,1746891032251,-2870.06,0.00018796,2]
[360562801,1746891032260,-1000.0,0.000188,2]
[360562803,1746891032269,-733.41,0.00018845,2]
[360562805,1746891032280,-608.63623187,0.00018973,2]
[360562806,1746891032289,-34607.0514781,0.00019,2]
[360562807,1746891037649,-173.29467167,0.00018237,2]
[360562808,1746891037659,-212.45920412,0.00018237,2]
[360562809,1746891037671,-53.00612305,0.00018237,2]
[360562810,1746891037769,-233.4818914,0.00018237,2]
[360562811,1746891037778,-283.1181086,0.00019,2]
[360562812,1746891037789,-4601.80811624,0.00019,2]
[360563044,1746891040243,-210.82495738,0.00019,2]
[360563047,1746891040258,-21722.26739602,0.00019,2]
[360563049,1746891040269,-31550.35177293,0.00019,2]
[360563051,1746891040280,-6690.53984059,0.00019,2]
[360563058,1746891040342,-836764.49044097,0.00019,2]
[360563059,1746891040393,-2418.9754995,0.00019,2]
[360563060,1746891040424,-281.35241955,0.00019,2]
[360563420,1746891044901,-200.0,0.0001852,2]
[360563421,1746891044911,-59.84214189,0.00019,2]
[360563477,1746891048841,-0.00410222,0.00019,2]
[360563478,1746891048852,-208603.73341849,0.00019,2]
[360563479,1746891048863,-67651.046399,0.00019,2]
[360563480,1746891048880,-1314.97739095,0.00019,2]
[360563481,1746891048911,-506.31591184,0.00019,2]
[360563482,1746891048922,-507.76834836,0.00019,2]
[360563483,1746891048933,-738.78441267,0.00019,2]
[360563484,1746891048944,-57324.18615359,0.00019,2]
[360563485,1746891049013,-663.16372602,0.00019,2]
[360563486,1746891049024,-365545.93675997,0.00019,2]
[360563487,1746891067833,-914.8,0.00019,2]
[360563488,1746891067864,-2051.0,0.00019,2]
[360563492,1746891135945,150.0,1e-08,2]
[360563494,1746891199769,500.0,0.00030058,120]
[360563495,1746891222111,-216.48552091,0.00017997,2]
[360563512,1746891458828,-269.18136954,0.00017992,2]
[360563513,1746891471248,-554.70706025,0.00017992,2]
[360563515,1746891486271,-200.0,0.00017992,2]
[360563516,1746891501264,-239.37157021,0.00017992,2]
[360563517,1746891501291,-12.88142979,0.00017992,2]
[360563518,1746891516218,-175.82191172,0.00017991,2]
[360563519,1746891531294,-192.11888246,0.00017991,2]
[360563520,1746891547214,-184.97111754,0.0001799,2]
[360563521,1746891561235,-115.02888246,0.0001799,2]
[360563522,1746891561263,-35.97111754,0.00017991,2]
[360563523,1746891570587,1309.79522378,0.00030136,120]
[360563524,1746891576801,-96.08808828,0.00017991,2]
[360563525,1746891576826,-172.822099,0.00017991,2]
[360563526,1746891591813,-108.47870324,0.00017991,2]
[360563527,1746891591850,-79.88919776,0.00017991,2]
[360563528,1746891605085,1652.0,0.00030136,120]
[360563529,1746891607936,-234.25332913,0.0001799,2]
[360563530,1746891621162,-187.14910654,0.0001799,2]
[360563531,1746891622840,703.94,0.00016077,2]
[360563532,1746891636387,-200.0,0.00017989,2]
[360563533,1746891651286,-200.0,0.00017989,2]
[360563535,1746891666251,-100.0,0.00017989,2]
[360563536,1746891666278,-150.0,0.00017989,2]
[360563538,1746891669999,-200.0,0.00017989,2]
[360563540,1746891673994,-126.49206786,0.00017989,2]
[360563541,1746891674031,-119.61793214,0.00017989,2]
[360563542,1746891674714,5000.0,0.0003,30]
[360563544,1746891681277,-380.38206786,0.00017989,2]
[360563545,1746891681316,-10.45112039,0.00017989,2]
[360563547,1746891696832,-305.9846205,0.00017989,2]
[360563548,1746891699073,-183.56425911,0.00017989,2]
[360563549,1746891699110,-66.43574089,0.00017989,2]
[360563550,1746891711264,-178.44759218,0.00017989,2]
[360563551,1746891726218,-300.0,0.00017988,2]
[360563552,1746891726259,-5.9846205,0.00017989,2]
[360563553,1746891740302,728.49,0.00013699,2]
[360563555,1746891741172,-166.66,0.00017874,2]
[360563572,1746891756704,-195.79235064,0.00017873,2]
[360563573,1746891757030,-195.79235064,0.00017873,2]
[360563575,1746891772930,-108.41529872,0.00017873,2]
[360563576,1746891772968,-63.99080552,0.00017873,2]
[360563577,1746891773442,-172.40610424,0.00017873,2]
[360563578,1746891791102,-200.0,0.00017872,2]
[360563579,1746891801224,-100.0,0.00017872,2]
[360563580,1746891801264,-243.04893302,0.00017873,2]
[360563581,1746891803884,500.0,0.00030059,120]
[360563582,1746891817346,-20.55415722,0.00017873,2]
[360563583,1746891817384,-296.54866574,0.00017873,2]
[360563585,1746891831188,-196.55355446,0.00017783,2]
[360563586,1746891846165,-180.01,0.00017783,2]
[360563587,1746891861201,-161.19,0.00017783,2]
[360563588,1746891877123,-355.38717717,0.00017783,2]
[360563589,1746891891580,-135.48850937,0.00017783,2]
[360563590,1746891891618,-156.77431346,0.00017872,2]
[360563591,1746891906762,-301.51261759,0.00017871,2]
[360563592,1746891921209,-342.5383065,0.00017871,2]
[360563593,1746891922445,-342.5383065,0.00017871,2]
[360563594,1746891936828,-210.298042,0.00017871,2]
[360563595,1746891951191,-3.11272741,0.00017871,2]
[360563596,1746891951218,-175.33984861,0.00017871,2]
[360563597,1746891966251,-169.75961356,0.00017871,2]
[360563598,1746891970524,1216.0,0.00026789,120]
[360563599,1746891981205,-250.0,0.00017859,2]
[360563600,1746891996254,-250.0,0.00017858,2]
[360563601,1746892011230,-250.0,0.00017858,2]
[360563602,1746892011272,-36.85228338,0.00017858,2]
[360563603,1746892027245,-300.0,0.00017857,2]
[360563604,1746892027285,-3.00232384,0.00017858,2]
[360563605,1746892042353,-355.35691915,0.00017858,2]
[360563606,1746892044127,-104.78847363,0.00017858,2]
[360563607,1746892044168,-500.0,0.00017858,2]
[360563608,1746892044208,-91.75170026,0.00017858,2]
[360563609,1746892045112,-408.24829974,0.00017858,2]
[360563610,1746892045148,-298.82321723,0.00017858,2]
[360563611,1746892056166,-201.17678277,0.00017858,2]
[360563612,1746892056206,-25.99508441,0.00017858,2]
[360563613,1746892068948,250.0,0.00017,2]
[360563614,1746892072307,-289.57623329,0.00017858,2]
[360563615,1746892086766,-190.04801037,0.00017724,2]
[360563616,1746892102211,-231.74989668,0.00017724,2]
[360563617,1746892116292,-151.0,0.00017724,2]
[360563621,1746892131161,-298.05223378,0.00017724,2]
[360563622,1746892146839,-111.41985917,0.00017724,2]
[360563623,1746892146876,-129.63463513,0.0001779,2]
[360563624,1746892154329,-370.36536487,0.0001779,2]
[360563625,1746892154362,-500.0,0.0001779,2]
[360563626,1746892154395,-500.0,0.0001779,2]
[360563627,1746892154425,-500.0,0.0001779,2]
[360563628,1746892154455,-500.0,0.0001779,2]
[360563629,1746892154487,-412.63779899,0.0001779,2]
[360563630,1746892154518,-500.0,0.0001779,2]
[360563631,1746892154553,-500.0,0.0001779,2]
[360563632,1746892154583,-500.0,0.0001779,2]
[360563633,1746892154612,-500.0,0.0001779,2]
[360563634,1746892154642,-500.0,0.0001779,2]
[360563635,1746892154674,-500.0,0.0001779,2]
[360563636,1746892154707,-500.0,0.0001779,2]
[360563637,1746892154739,-500.0,0.0001779,2]
[360563638,1746892154777,-500.0,0.0001779,2]
[360563639,1746892154800,-200.0,0.00017791,2]
[360563640,1746892154823,-200.0,0.00017837,2]
[360563641,1746892154847,-966.0,0.00017859,2]
[360563642,1746892154871,-63.24038644,0.00017871,2]
[360563643,1746892154893,-833.34,0.00017874,2]
[360563644,1746892154915,-433.2664497,0.00017992,2]
[360563645,1746892161481,-250.0,0.00017891,2]
[360563646,1746892165104,-200.0,0.00017891,2]
[360563647,1746892165125,-130.06005036,0.00017992,2]
[360563648,1746892166103,-274.77207015,0.00017992,2]
[360563649,1746892166123,-174.97,0.00017995,2]
[360563650,1746892166143,-154.90975815,0.00018,2]
[360563651,1746892176407,-157.70735956,0.00018006,2]
[360563652,1746892191197,-74.80908868,0.00018006,2]
[360563653,1746892191223,-81.53904432,0.00018051,2]
[360563654,1746892206351,-271.88450744,0.00018013,2]
[360563659,1746892218434,3013.0,0.0003,30]
[360563660,1746892221235,-143.14549256,0.00018013,2]
[360563661,1746892221262,-56.85450744,0.00018032,2]
[360563665,1746892231855,-143.14549256,0.00018032,2]
[360563666,1746892231865,-77.16095568,0.00018051,2]
[360563667,1746892231875,-118.09439068,0.00018115,2]
[360563668,1746892231886,-81.90560932,0.00018115,2]
[360563669,1746892231895,-947.42519132,0.00018124,2]
[360563670,1746892231960,-136.95480868,0.00018124,2]
[360563671,1746892232226,-351.68051129,0.00018154,2]
[360563672,1746892232239,-208.74948871,0.00018154,2]
[360563674,1746892232249,-284.46,0.00018233,2]
[360563676,1746892232259,-150.0,0.00018286,2]
[360563678,1746892232269,-703.94,0.00018341,2]
[360563680,1746892232278,-250.0,0.00018369,2]
[360563682,1746892232288,-166.66,0.00018644,2]
[360563684,1746892232297,-500.0,0.00018658,2]
[360563686,1746892232307,-500.0,0.00018685,2]
[360563688,1746892232316,-207.4,0.0001875,2]
[360563690,1746892232325,-1200.0,0.00018888,2]
[360563692,1746892232334,-151.0,0.00018889,2]
[360563694,1746892232344,-0.42831129,0.00018889,2]
[360563698,1746892232372,-154.57168871,0.00018889,2]
[360563700,1746892232381,-151.0,0.00018889,2]
[360563702,1746892232390,-194.21023244,0.00018889,2]
[360563704,1746892232401,-474.44162513,0.00018889,2]
[360563706,1746892232410,-128.05837537,0.00018898,2]
[360563821,1746892238376,-171.94162463,0.00018898,2]
[360563822,1746892238386,-1791.257,0.00018899,2]
[360563823,1746892238396,-278.90752815,0.00018899,2]
[360563824,1746892238406,-171.249,0.00018899,2]
[360563825,1746892238416,-861.0278,0.000189,2]
[360563826,1746892238425,-12334.80834802,0.000189,2]
[360563827,1746892238437,-23217.11835198,0.000189,2]
[360563828,1746892238447,-5703.7457,0.000189,2]
[360563829,1746892238456,-219.124,0.000189,2]
[360563830,1746892238465,-3990.309,0.000189,2]
[360563831,1746892238474,-185.1364,0.000189,2]
[360563832,1746892238483,-152.4311051,0.000189,2]
[360563833,1746892238492,-200.60782602,0.000189,2]
[360563834,1746892238501,-500.0,0.00018932,2]
[360563835,1746892238511,-524.9772034,0.00018973,2]
[360563836,1746892238520,-500.0,0.00018973,2]
[360563837,1746892238530,-152.43110505,0.0001898,2]
[360563838,1746892238539,-855.5,0.0001899,3]
[360563839,1746892238549,-4332.48,0.0001899,2]
[360563840,1746892238558,-4332.48,0.0001899,2]
[360563841,1746892238567,-345.82150599,0.00018993,2]
[360563842,1746892238577,-4826.43,0.00019,2]
[360563843,1746892238586,-4826.43,0.00019,2]
[360563844,1746892238595,-1913.38181978,0.00019,2]
[360563845,1746892238606,-2452.13343391,0.00019,2]
[360563849,1746892239914,-460.91474631,0.00019,2]
[360563850,1746892239924,-1930.57,0.00019,2]
[360563851,1746892239934,-1761.14,0.00019,2]
[360563852,1746892239943,-2650.13588608,0.00019,2]
[360563853,1746892240011,-769298.44290335,0.00019,2]
[360563854,1746892240020,-1000.0,0.00019,2]
[360563855,1746892240029,-1003.0,0.00019,2]
[360563856,1746892240038,-300.0,0.00019,2]
[360563857,1746892240048,-500.0,0.00019014,2]
[360563858,1746892240061,-152.43110505,0.0001906,2]
[360563859,1746892240070,-199.95057975,0.00019078,2]
[360563860,1746892240079,-166.55221696,0.00019078,2]
[360563861,1746892240092,-200.60782601,0.00019078,2]
[360563862,1746892240110,-164.5769679,0.00019078,2]
[360563863,1746892240126,-7266.6818,0.00019078,2]
[360563864,1746892240142,-225.0,0.00019078,2]
[360563865,1746892240157,-289.5381,0.00019078,2]
[360563866,1746892240175,-1000.0,0.000191,2]
[360563867,1746892240189,-152.43110505,0.0001914,2]
[360563868,1746892240201,-500.0,0.00019173,2]
[360563869,1746892240217,-500.0,0.00019173,2]
[360563870,1746892240233,-500.0,0.00019173,2]
[360563871,1746892240250,-500.0,0.00019173,2]
[360563872,1746892240265,-500.0,0.00019173,2]
[360563873,1746892240282,-500.0,0.00019173,2]
[360563874,1746892240297,-500.0,0.00019173,2]
[360563875,1746892240311,-500.0,0.00019173,2]
[360563876,1746892240327,-328.13404574,0.00019173,2]
[360563877,1746892240341,-500.0,0.00019173,2]
[360563878,1746892240353,-480.35858286,0.00019173,2]
[360563879,1746892240365,-556.86010887,0.00019173,2]
[360563880,1746892240382,-600.0,0.00019173,2]
[360563881,1746892240393,-500.0,0.00019173,2]
[360563882,1746892240405,-400.0,0.00019178,2]
[360563883,1746892240421,-400.0,0.00019178,2]
[360563884,1746892240432,-400.0,0.00019178,2]
[360563885,1746892240444,-400.0,0.00019178,2]
[360563886,1746892240460,-400.0,0.00019178,2]
[360563887,1746892240473,-400.0,0.00019178,2]
[360563888,1746892240489,-400.0,0.00019178,2]
[360563889,1746892240505,-400.0,0.00019178,2]
[360563890,1746892240519,-400.0,0.00019178,2]
[360563891,1746892240532,-400.0,0.00019178,2]
[360563892,1746892240546,-400.0,0.00019178,2]
[360563893,1746892240559,-524.23121312,0.00019178,2]
[360563894,1746892240573,-400.0,0.00019178,2]
[360563895,1746892240586,-400.0,0.00019178,2]
[360563896,1746892240599,-400.0,0.00019178,2]
[360563897,1746892240612,-401.2057393,0.00019178,2]
[360563898,1746892240624,-400.0,0.00019178,2]
[360563899,1746892240637,-400.0,0.00019178,2]
[360563900,1746892240650,-400.0,0.00019178,2]
[360563901,1746892240663,-400.0,0.00019178,2]
[360563902,1746892240676,-479.78,0.00019178,2]
[360563905,1746892240690,-411.26,0.00019178,2]
[360563907,1746892240702,-400.0,0.00019178,2]
[360563909,1746892240716,-400.0,0.00019178,2]
[360563912,1746892240730,-400.0,0.00019178,2]
[360563914,1746892240742,-502.92841314,0.00019178,2]
[360563917,1746892240757,-400.0,0.00019178,2]
[360563919,1746892240770,-400.0,0.00019178,2]
[360563921,1746892240782,-400.0,0.00019178,2]
[360563924,1746892240795,-400.0,0.00019178,2]
[360563926,1746892240809,-400.0,0.00019178,2]
[360563928,1746892240825,-400.0,0.00019178,2]
[360563931,1746892240839,-475.80733155,0.00019178,2]
[360563932,1746892240852,-400.0,0.00019178,2]
[360563933,1746892240865,-400.0,0.00019178,2]
[360563934,1746892240878,-482.1082104,0.00019178,2]
[360563935,1746892240892,-406.5611586,0.00019178,2]
[360563936,1746892240904,-400.0,0.00019178,2]
[360563937,1746892240919,-405.67,0.00019178,2]
[360563938,1746892240932,-400.0,0.00019178,2]
[360563939,1746892240951,-400.0,0.00019178,2]
[360563940,1746892240967,-400.0,0.00019178,2]
[360563941,1746892240982,-400.0,0.00019178,2]
[360563942,1746892240996,-400.0,0.00019178,2]
[360563943,1746892241010,-309.86047404,0.00019178,2]
[360563944,1746892241023,-400.0,0.00019178,2]
[360563945,1746892241038,-604.15,0.00019178,2]
[360563946,1746892241054,-400.0,0.00019178,2]
[360563948,1746892241068,-400.0,0.00019178,2]
[360563951,1746892241081,-400.0,0.00019178,2]
[360563953,1746892241099,-400.0,0.00019178,2]
[360563955,1746892241112,-400.0,0.00019178,2]
[360563958,1746892241129,-400.0,0.00019178,2]
[360563960,1746892241144,-400.0,0.00019178,2]
[360563962,1746892241157,-400.0,0.00019178,2]
[360563965,1746892241173,-403.83267939,0.00019178,2]
[360563967,1746892241187,-400.0,0.00019178,2]
[360563970,1746892241200,-400.0,0.00019178,2]
[360563972,1746892241215,-400.0,0.00019178,2]
[360563974,1746892241228,-400.0,0.00019178,2]
[360563977,1746892241241,-400.0,0.00019178,2]
[360563979,1746892241254,-400.0,0.00019178,2]
[360563982,1746892241269,-500.0,0.00019178,2]
[360563984,1746892241282,-400.0,0.00019178,2]
[360563986,1746892241295,-183.92638364,0.00019178,2]
[360563989,1746892241309,-400.0,0.00019178,2]
[360563991,1746892241321,-400.0,0.00019178,2]
[360563994,1746892241335,-400.0,0.00019178,2]
[360563996,1746892241349,-400.0,0.00019178,2]
[360563998,1746892241362,-400.0,0.00019178,2]
[360564001,1746892241375,-400.0,0.00019178,2]
[360564003,1746892241388,-400.0,0.00019178,2]
[360564005,1746892241401,-400.0,0.00019178,2]
[360564008,1746892241414,-400.0,0.00019178,2]
[360564010,1746892241427,-409.84216593,0.00019178,2]
[360564013,1746892241440,-400.0,0.00019178,2]
[360564015,1746892241453,-400.0,0.00019178,2]
[360564017,1746892241466,-400.0,0.00019178,2]
[360564020,1746892241479,-400.0,0.00019178,2]
[360564022,1746892241491,-400.0,0.00019178,2]
[360564024,1746892241504,-400.0,0.00019178,2]
[360564027,1746892241518,-400.0,0.00019178,2]
[360564029,1746892241531,-400.0,0.00019178,2]
[360564031,1746892241544,-400.0,0.00019178,2]
[360564034,1746892241556,-400.0,0.00019178,2]
[360564036,1746892241569,-400.0,0.00019178,2]
[360564038,1746892241583,-500.0,0.00019178,2]
[360564041,1746892241595,-400.0,0.00019178,2]
[360564043,1746892241609,-400.0,0.00019178,2]
[360564046,1746892241623,-400.0,0.00019178,2]
[360564048,1746892241637,-400.0,0.00019178,2]
[360564050,1746892241650,-400.0,0.00019178,2]
[360564053,1746892241664,-400.0,0.00019178,2]
[360564055,1746892241677,-400.0,0.00019178,2]
[360564057,1746892241686,-400.0,0.00019178,2]
[360564059,1746892241695,-333.42984629,0.00019178,2]
[360564061,1746892241705,-400.0,0.00019178,2]
[360564063,1746892241714,-459.7190834,0.00019178,2]
[360564065,1746892241723,-419.18003224,0.00019178,2]
[360564067,1746892241732,-400.0,0.00019178,2]
[360564069,1746892241742,-508.51756232,0.00019178,2]
[360564071,1746892241752,-400.0,0.00019178,2]
[360564073,1746892241763,-400.0,0.00019178,2]
[360564075,1746892241772,-466.20876886,0.00019178,2]
[360564077,1746892241782,-512.34893566,0.00019178,2]
[360564080,1746892241791,-400.0,0.00019178,2]
[360564082,1746892241802,-400.0,0.00019178,2]
[360564084,1746892241811,-400.0,0.00019178,2]
[360564120,1746892242141,-1000.0,0.00019178,2]
[360564123,1746892242161,-400.0,0.00019178,2]
[360564127,1746892242191,-400.0,0.00019178,2]
[360564131,1746892242217,-400.0,0.00019178,2]
[360564133,1746892242227,-400.0,0.00019178,2]
[360564135,1746892242237,-400.0,0.00019178,2]
[360564137,1746892242246,-400.0,0.00019178,2]
[360564139,1746892242260,-400.0,0.00019178,2]
[360564141,1746892242269,-400.0,0.00019178,2]
[360564143,1746892242279,-400.0,0.00019178,2]
[360564145,1746892242288,-304.27630611,0.00019178,2]
[360564147,1746892242297,-401.4969301,0.00019178,2]
[360564149,1746892242306,-500.0,0.00019178,2]
[360564151,1746892242315,-400.0,0.00019178,2]
[360564153,1746892242325,-400.0,0.00019178,2]
[360564155,1746892242335,-400.0,0.00019178,2]
[360564157,1746892242344,-400.0,0.00019178,2]